bitfinex-derivatives/quotes_BTCF0:USTF0_20250614
["timestamp","ask_amount","ask_price","bid_price","bid_amount"]
[1749894710382,0.76316476,104950.0,104940.0,0.46287314]
[1749894710573,0.77078001,104950.0,104940.0,0.48800559]
[1749894710773,0.77078001,104950.0,104940.0,0.50117316]
[1749894710974,0.77078001,104950.0,104940.0,0.5011731]
[1749894711174,0.77078001,104950.0,104940.0,0.50117311]
[1749894711379,0.85972462,104950.0,104940.0,0.31068258]
[1749894711578,0.85972462,104950.0,104940.0,0.63479095]
[1749894711774,0.85972462,104950.0,104940.0,0.27206792]
[1749894711981,0.77078001,104950.0,104940.0,0.27206821]
[1749894712173,0.8597247,104950.0,104940.0,0.45748215]
[1749894712481,0.8597247,104950.0,104940.0,0.31069991]
[1749894712873,0.8597247,104950.0,104940.0,0.31069989]
[1749894713174,0.88937814,104950.0,104940.0,0.26769204]
[1749894713374,0.88937814,104950.0,104940.0,0.26773593]
[1749894713578,0.92147814,104950.0,104940.0,0.26773593]
[1749894713777,0.92147814,104950.0,104940.0,0.2545]
[1749894713978,0.92147814,104950.0,104940.0,0.26773721]
[1749894714179,0.92147814,104950.0,104940.0,0.26773724]
[1749894714375,0.80288001,104950.0,104940.0,0.31075129]
[1749894714576,0.80288001,104950.0,104940.0,0.50124917]
[1749894714773,0.80288001,104950.0,104940.0,0.50124915]
[1749894714974,0.80288001,104950.0,104940.0,0.48801196]
[1749894715183,0.80288001,104950.0,104940.0,0.50124914]
[1749894715381,0.8918164,104950.0,104940.0,0.50124914]
[1749894715778,0.8918164,104950.0,104940.0,0.48801196]
[1749894715982,0.80288001,104950.0,104940.0,0.50131404]
[1749894716484,0.89181012,104950.0,104940.0,0.06331614]
[1749894716680,0.92147814,104950.0,104940.0,0.02036519]
[1749894716883,0.92147814,104950.0,104940.0,0.02036579]
[1749894717083,0.92147814,104950.0,104940.0,0.02037805]
[1749894717285,0.92147814,104950.0,104940.0,0.007]
[1749894717584,0.92147814,104950.0,104940.0,0.02037808]
[1749894718182,0.92147814,104950.0,104940.0,0.02037801]
[1749894718374,0.92147814,104950.0,104940.0,0.007]
[1749894718577,0.92147814,104950.0,104940.0,0.02031099]
[1749894718772,0.92147814,104950.0,104940.0,0.007]
[1749894718985,0.92147814,104950.0,104940.0,0.02031099]
[1749894719376,0.92147814,104950.0,104940.0,0.007]
[1749894719581,0.92147814,104950.0,104940.0,0.02026754]
[1749894720082,0.92147814,104950.0,104940.0,0.007]
[1749894720283,0.92147814,104950.0,104940.0,0.02026754]
[1749894720778,0.92147814,104950.0,104940.0,0.007]
[1749894720984,0.92147814,104950.0,104940.0,0.02026753]
[1749894721486,0.92147814,104950.0,104940.0,0.03515697]
[1749894721680,0.92147814,104950.0,104940.0,0.02028391]
[1749894721877,0.92147814,104950.0,104940.0,0.02188944]
[1749894722078,0.80288001,104950.0,104940.0,0.03517336]
[1749894722277,0.80288001,104950.0,104940.0,0.02028391]
[1749894722480,0.44208001,104950.0,104940.0,0.3591725]
[1749894722785,0.62399485,104950.0,104940.0,0.40328949]
[1749894723083,0.46587832,104950.0,104940.0,0.45119737]
[1749894723283,0.82667832,104950.0,104940.0,0.46603803]
[1749894723482,0.82667832,104950.0,104940.0,0.46603802]
[1749894723780,0.82667832,104950.0,104940.0,0.46606725]
[1749894723988,0.73778001,104950.0,104940.0,0.46606725]
[1749894724190,0.73778001,104950.0,104940.0,0.45287579]
[1749894724486,0.73778001,104950.0,104940.0,0.46607562]
[1749894724682,0.55889485,104950.0,104940.0,0.46607562]
[1749894724880,0.79457372,104950.0,104940.0,0.46607558]
[1749894725077,0.79457372,104950.0,104940.0,0.45287575]
[1749894725280,0.79457372,104950.0,104940.0,0.4660582]
[1749894725593,0.79457372,104950.0,104940.0,0.49411542]
[1749894725787,0.79457372,104950.0,104940.0,0.48096324]
[1749894725987,0.79457372,104950.0,104940.0,0.50900469]
[1749894726489,0.43377372,104950.0,104940.0,0.49411238]
[1749894726689,0.43377372,104950.0,104940.0,0.5089983]
[1749894726989,0.43377372,104950.0,104940.0,0.49585548]
[1749894727184,0.43377372,104950.0,104940.0,0.48096324]
[1749894727390,0.43377372,104950.0,104940.0,0.49585548]
[1749894727683,0.43377372,104950.0,104940.0,0.33417808]
[1749894727884,0.28698856,104950.0,104940.0,0.49585544]
[1749894728088,0.43377372,104950.0,104940.0,0.49585544]
[1749894728289,0.28698856,104950.0,104940.0,0.4958554]
[1749894728488,0.43377372,104950.0,104940.0,0.48096324]
[1749894728781,0.43377372,104950.0,104940.0,0.49585538]
[1749894728982,0.43377372,104950.0,104940.0,0.48096324]
[1749894729190,0.43377372,104950.0,104940.0,0.49585538]
[1749894729389,0.43377372,104950.0,104940.0,0.48096324]
[1749894729589,0.43377372,104950.0,104940.0,0.49585534]
[1749894729789,0.43377372,104950.0,104940.0,0.48096324]
[1749894730189,0.43377372,104950.0,104940.0,0.49585534]
[1749894730784,0.43377372,104950.0,104940.0,0.48096324]
[1749894730992,0.43377372,104950.0,104940.0,0.49585533]
[1749894731186,0.43377372,104950.0,104940.0,0.48096324]
[1749894731384,0.43377372,104950.0,104940.0,0.49585533]
[1749894731987,0.28698856,104950.0,104940.0,0.85665527]
[1749894732191,0.28698856,104950.0,104940.0,0.84176324]
[1749894732392,0.28698856,104950.0,104940.0,0.85176324]
[1749894732591,0.28698856,104950.0,104940.0,0.86665458]
[1749894732891,0.28698856,104950.0,104940.0,0.86665457]
[1749894733096,0.19809485,104950.0,104940.0,1.01343944]
[1749894733387,0.19809485,104950.0,104940.0,0.86665427]
[1749894734093,0.00761525,104950.0,104940.0,1.4387273]
[1749894734295,0.00761525,104950.0,104940.0,1.43872691]
[1749894734589,0.00761525,104950.0,104940.0,1.43872677]
[1749894734796,0.00761525,104950.0,104940.0,1.14515645]
[1749894734987,0.00761525,104950.0,104940.0,1.49817204]
[1749894735297,0.09650896,104950.0,104940.0,1.43872648]
[1749894735593,0.09650896,104950.0,104940.0,1.4238364]
[1749894735790,0.09650896,104950.0,104940.0,1.43871291]
[1749894737093,0.00761525,104950.0,104940.0,1.43871291]
[1749894737294,0.00761525,104950.0,104940.0,1.43871287]
[1749894737693,0.00761525,104950.0,104940.0,1.4238364]
[1749894737889,0.00761525,104950.0,104940.0,1.43871287]
[1749894738095,0.00761525,104950.0,104940.0,1.34342487]
[1749894738296,0.00761525,104950.0,104940.0,1.34342486]
[1749894738594,0.00761525,104950.0,104940.0,1.3285484]
[1749894738788,0.00761525,104950.0,104940.0,1.34342479]
[1749894739494,0.00761525,104950.0,104940.0,1.34342462]
[1749894740090,0.00761525,104950.0,104940.0,1.34342461]
[1749894740294,0.00761525,104950.0,104940.0,1.34342456]
[1749894740494,0.00761525,104950.0,104940.0,1.34342454]
[1749894741294,0.00761525,104950.0,104940.0,1.3285484]
[1749894741496,0.00761525,104950.0,104940.0,1.34342454]
[1749894742292,0.00761525,104950.0,104940.0,1.34342456]
[1749894742994,0.00761525,104950.0,104940.0,1.3285484]
[1749894743195,0.00761525,104950.0,104940.0,2.30734456]
[1749894743388,0.00761525,104950.0,104940.0,2.2924684]
[1749894743585,0.00761525,104950.0,104940.0,2.30734456]
[1749894743789,0.00761525,104950.0,104940.0,2.30722905]
[1749894744096,0.00761525,104950.0,104940.0,2.2924684]
[1749894744296,0.19809495,104950.0,104940.0,1.00330905]
[1749894744493,0.19809495,104950.0,104940.0,1.9971893]
[1749894744796,0.19809495,104950.0,104940.0,1.9822284]
[1749894745190,0.19809495,104950.0,104940.0,2.04167396]
[1749894745398,0.19809495,104950.0,104940.0,1.9832284]
[1749894746599,0.2022333,104950.0,104940.0,1.9832284]
[1749894747197,0.2022333,104950.0,104940.0,1.0195484]
[1749894747399,0.2022333,104950.0,104940.0,1.9829084]
[1749894748398,0.2022333,104950.0,104940.0,2.04235396]
[1749894750503,0.2022333,104950.0,104940.0,2.35235396]
[1749894750802,0.2022333,104950.0,104940.0,2.34235396]
[1749894751101,0.2022333,104950.0,104940.0,1.37899396]
[1749894751297,0.2022333,104950.0,104940.0,2.34211396]
[1749894751501,0.2339333,104950.0,104940.0,2.34211396]
[1749894751700,0.2339333,104950.0,104940.0,1.34539396]
[1749894751902,0.2643333,104950.0,104940.0,2.30927396]
[1749894753407,0.2643333,104950.0,104940.0,1.34639396]
[1749894753605,0.2643333,104950.0,104940.0,1.9023688]
[1749894753903,0.2643333,104950.0,104940.0,2.04915396]
[1749894754098,0.2969333,104950.0,104940.0,2.04915396]
[1749894754308,0.2969333,104950.0,104940.0,2.04815396]
[1749894754503,0.2969333,104950.0,104940.0,2.04915396]
[1749894754702,0.2643333,104950.0,104940.0,2.04915396]
[1749894755506,0.2643333,104950.0,104940.0,2.34915396]
[1749894759109,0.2643333,104950.0,104940.0,2.29915396]
[1749894759807,0.0738536,104950.0,104940.0,2.29915396]
[1749894761001,0.0738536,104950.0,104940.0,2.38813795]
[1749894763809,0.06971525,104950.0,104940.0,2.38813795]
[1749894765308,0.03931525,104950.0,104940.0,2.32869239]
[1749894765509,0.0042809,104960.0,104950.0,0.1904797]
[1749894765708,0.0042809,104960.0,104950.0,2.16055983]
[1749894766008,0.00014255,104960.0,104950.0,2.19315983]
[1749894766413,0.00014255,104960.0,104950.0,2.20804731]
[1749894766614,0.00014255,104960.0,104950.0,2.21004732]
[1749894767109,0.00014255,104960.0,104950.0,2.19515983]
[1749894767410,0.00014255,104960.0,104950.0,2.19715983]
[1749894767615,0.00014255,104960.0,104950.0,2.21204731]
[1749894767914,0.00014255,104960.0,104950.0,2.19715983]
[1749894768119,0.00014255,104960.0,104950.0,2.21204753]
[1749894768510,0.00014255,104960.0,104950.0,2.21204761]
[1749894769115,0.00014255,104960.0,104950.0,2.2120476]
[1749894769414,0.00014255,104960.0,104950.0,2.19715983]
[1749894769913,0.00014255,104960.0,104950.0,2.2120476]
[1749894770315,0.00014255,104960.0,104950.0,2.19715983]
[1749894770909,0.00014255,104960.0,104950.0,2.2120476]
[1749894771110,0.00014255,104960.0,104950.0,2.19715983]
[1749894771416,0.00014255,104960.0,104950.0,2.2120476]
[1749894771618,0.00014255,104960.0,104950.0,2.20651736]
[1749894771820,0.00014255,104960.0,104950.0,2.22126351]
[1749894772011,0.00014255,104960.0,104950.0,2.22126338]
[1749894772211,0.00014255,104960.0,104950.0,2.14699297]
[1749894772408,0.00014255,104960.0,104950.0,2.2064606]
[1749894772613,0.00014255,104960.0,104950.0,2.00020781]
[1749894772920,0.00014255,104960.0,104950.0,2.1617388]
[1749894773112,0.00014255,104960.0,104950.0,2.16173879]
[1749894773713,0.00014255,104960.0,104950.0,2.14699297]
[1749894773915,0.00014255,104960.0,104950.0,2.1617388]
[1749894774513,0.00014255,104960.0,104950.0,2.21183952]
[1749894774713,0.00014255,104960.0,104950.0,2.19709368]
[1749894774913,0.00014255,104960.0,104950.0,2.21183952]
[1749894775118,0.00014255,104960.0,104950.0,2.15269808]
[1749894775520,0.00014255,104960.0,104950.0,2.16744392]
[1749894775722,0.00014255,104960.0,104950.0,2.15269808]
[1749894775917,0.00014255,104960.0,104950.0,2.16744392]
[1749894776120,0.00014255,104960.0,104950.0,2.10798568]
[1749894776320,0.00014255,104960.0,104950.0,2.09323984]
[1749894776514,0.00014255,104960.0,104950.0,2.10798589]
[1749894776720,0.00014255,104960.0,104950.0,2.40638589]
[1749894777219,0.00014255,104960.0,104950.0,2.39163984]
[1749894777419,0.00014255,104960.0,104950.0,2.40638589]
[1749894777619,0.00014255,104960.0,104950.0,2.39163984]
[1749894780019,0.00014255,104960.0,104950.0,3.35307984]
[1749894780714,0.00014255,104960.0,104950.0,2.39163984]
[1749894781121,0.19060395,104960.0,104950.0,2.32883984]
[1749894781321,0.28790395,104960.0,104950.0,3.29015984]
[1749894782521,0.28790395,104960.0,104950.0,2.96125984]
[1749894783228,0.2920423,104960.0,104950.0,2.94519946]
[1749894784028,0.2920423,104960.0,104950.0,2.90061107]
[1749894784229,0.2920423,104960.0,104950.0,1.98387946]
[1749894784425,0.2920423,104960.0,104950.0,2.94523946]
[1749894784629,0.2920423,104960.0,104950.0,2.65523946]
[1749894784926,0.2920423,104960.0,104950.0,2.65623946]
[1749894785128,0.2920423,104960.0,104950.0,2.7156977]
[1749894785323,0.1015809,104960.0,104950.0,2.7156977]
[1749894785524,0.1015809,104960.0,104950.0,2.67110931]
[1749894786230,0.2920425,104960.0,104950.0,1.70974931]
[1749894786425,0.2920425,104960.0,104950.0,2.54022453]
[1749894786627,0.2920425,104960.0,104950.0,2.58481663]
[1749894787022,0.2920425,104960.0,104950.0,2.50481663]
[1749894787428,0.2920425,104960.0,104950.0,2.63554141]
[1749894787930,0.2920425,104960.0,104950.0,2.65038746]
[1749894788628,0.2920425,104960.0,104950.0,2.63554141]
[1749894788831,0.2920425,104960.0,104950.0,1.68918739]
[1749894789023,0.1015809,104960.0,104950.0,1.68918739]
[1749894789230,0.2920425,104960.0,104950.0,2.65014742]
[1749894789528,0.2920425,104960.0,104950.0,2.65014734]
[1749894789927,0.2920425,104960.0,104950.0,1.68918734]
[1749894790230,0.2920425,104960.0,104950.0,1.72593663]
[1749894790431,0.2920425,104960.0,104950.0,2.51942271]
[1749894790836,0.1015809,104960.0,104950.0,2.51942271]
[1749894791026,0.1015809,104960.0,104950.0,2.63530141]
[1749894791227,0.09744255,104960.0,104950.0,2.63530141]
[1749894791922,0.09744255,104960.0,104950.0,2.65018594]
[1749894793035,0.09744255,104960.0,104950.0,2.59070931]
[1749894793437,0.09744255,104960.0,104950.0,2.65020661]
[1749894793640,0.09744255,104960.0,104950.0,2.6055938]
[1749894794139,0.09744255,104960.0,104950.0,2.60559373]
[1749894794339,0.09744255,104960.0,104950.0,2.6055937]
[1749894794539,0.09744255,104960.0,104950.0,2.60558235]
[1749894796043,0.09744255,104960.0,104950.0,2.59070931]
[1749894796343,0.09744255,104960.0,104950.0,2.65021015]
[1749894796838,0.09744255,104960.0,104950.0,2.63533697]
[1749894797250,0.09744255,104960.0,104950.0,2.60559831]
[1749894797838,0.09744255,104960.0,104950.0,2.59070931]
[1749894798238,0.28790395,104960.0,104950.0,2.59070931]
[1749894798442,0.28790395,104960.0,104950.0,2.60559831]
[1749894798738,0.28790395,104960.0,104950.0,2.59070931]
[1749894798944,0.28790395,104960.0,104950.0,2.60559831]
[1749894799144,0.28790395,104960.0,104950.0,2.59070931]
[1749894799444,0.28790395,104960.0,104950.0,2.60559831]
[1749894799947,0.28790395,104960.0,104950.0,2.59070931]
[1749894801046,0.28790395,104960.0,104950.0,2.60559831]
[1749894801345,0.28790395,104960.0,104950.0,2.63533456]
[1749894801742,0.28790395,104960.0,104950.0,2.65022362]
[1749894801938,0.28790395,104960.0,104950.0,2.65022359]
[1749894802541,0.28790395,104960.0,104950.0,2.60559834]
[1749894802942,0.28790395,104960.0,104950.0,2.59070931]
[1749894803142,0.09744255,104960.0,104950.0,2.60559834]
[1749894803344,0.09744255,104960.0,104950.0,2.62194308]
[1749894803644,0.28790405,104960.0,104950.0,2.62194308]
[1749894803841,0.28790405,104960.0,104950.0,2.60705405]
[1749894804041,0.28790405,104960.0,104950.0,2.62194305]
[1749894804843,0.28790405,104960.0,104950.0,2.60705405]
[1749894805055,0.09744255,104960.0,104950.0,2.60705405]
[1749894805245,0.28790405,104960.0,104950.0,2.62194305]
[1749894805441,0.43497357,104960.0,104950.0,1.81058764]
[1749894805648,0.43497357,104960.0,104950.0,2.64803162]
[1749894805841,0.43497357,104960.0,104950.0,2.63314214]
[1749894806042,0.52386728,104960.0,104950.0,2.58857347]
[1749894806242,0.52386728,104960.0,104950.0,2.58857366]
[1749894806443,0.52386728,104960.0,104950.0,2.5736839]
[1749894806844,0.52386728,104960.0,104950.0,2.58857368]
[1749894807044,0.52386728,104960.0,104950.0,2.5736839]
[1749894807653,0.52386728,104960.0,104950.0,2.58857368]
[1749894808543,0.52386728,104960.0,104950.0,2.5736839]
[1749894808743,0.52386728,104960.0,104950.0,2.58857368]
[1749894809048,0.52386728,104960.0,104950.0,2.58885368]
[1749894809243,0.52386728,104960.0,104950.0,1.7957639]
[1749894809446,0.52386728,104960.0,104950.0,2.58869377]
[1749894810145,0.52386728,104960.0,104950.0,2.5738039]
[1749894810346,0.52386728,104960.0,104950.0,1.62829377]
[1749894810649,0.52800563,104960.0,104950.0,2.58801377]
[1749894810845,0.38093611,104960.0,104950.0,2.58801377]
[1749894811045,0.52800563,104960.0,104950.0,2.5731239]
[1749894811246,0.52800563,104960.0,104950.0,2.5880137]
[1749894811449,0.38093611,104960.0,104950.0,2.5880137]
[1749894811750,0.52386728,104960.0,104950.0,2.5880137]
[1749894811953,0.52386728,104960.0,104950.0,2.6188137]
[1749894812254,0.52386728,104960.0,104950.0,2.63580673]
[1749894813051,0.52386728,104960.0,104950.0,2.62091693]
[1749894813249,0.52386728,104960.0,104950.0,2.63580673]
[1749894813452,0.37679776,104960.0,104950.0,2.63580673]
[1749894813655,0.52386728,104960.0,104950.0,1.79747693]
[1749894813952,0.52386728,104960.0,104950.0,1.81236672]
[1749894814856,0.52386728,104960.0,104950.0,1.81236671]
[1749894815054,0.52386728,104960.0,104950.0,1.79747693]
[1749894815355,0.52386728,104960.0,104950.0,1.81236671]
[1749894816550,0.52386728,104960.0,104950.0,1.79747693]
[1749894816752,0.52386728,104960.0,104950.0,1.81236671]
[1749894816952,0.52386728,104960.0,104950.0,1.79747693]
[1749894817155,0.52386728,104960.0,104950.0,1.81236671]
[1749894817958,0.52386728,104960.0,104950.0,1.79747693]
[1749894818354,0.52386728,104960.0,104950.0,1.81236671]
[1749894819260,0.52386728,104960.0,104950.0,1.79747693]
[1749894819458,0.52386728,104960.0,104950.0,1.81236671]
[1749894821947,0.52386728,104960.0,104950.0,1.79747693]
[1749894822153,0.52386728,104960.0,104950.0,1.81236673]
[1749894822362,0.52386728,104960.0,104950.0,1.79747693]
[1749894822562,0.52386728,104960.0,104950.0,1.81236673]
[1749894823065,0.52386728,104960.0,104950.0,1.79747693]
[1749894823361,0.52386728,104960.0,104950.0,1.81236673]
[1749894824057,0.52386728,104960.0,104950.0,1.03436673]
[1749894824264,0.52386728,104960.0,104950.0,2.27428711]
[1749894824453,0.52386728,104960.0,104950.0,2.25939693]
[1749894824763,0.52386728,104960.0,104950.0,2.22965277]
[1749894825064,0.52386728,104960.0,104950.0,2.21476243]
[1749894825361,0.43497357,104960.0,104950.0,2.06769291]
[1749894825560,0.43497357,104960.0,104950.0,2.22965277]
[1749894825561,0.5535717,104960.0,104950.0,2.22965277]
[1749894826164,0.5535717,104960.0,104950.0,2.21476243]
[1749894827164,0.5535717,104960.0,104950.0,2.22965277]
[1749894827368,0.40650218,104960.0,104950.0,2.21476243]
[1749894827569,0.40650218,104960.0,104950.0,2.22965277]
[1749894827867,0.5535717,104960.0,104950.0,2.24796243]
[1749894828068,0.5535717,104960.0,104950.0,2.26285277]
[1749894828369,0.43497357,104960.0,104950.0,2.26285277]
[1749894828573,0.43497357,104960.0,104950.0,1.43941277]
[1749894828862,0.43497357,104960.0,104950.0,1.27745291]
[1749894829060,0.43497357,104960.0,104950.0,1.4394128]
[1749894830460,0.43497357,104960.0,104950.0,1.42452243]
[1749894830669,0.43497357,104960.0,104950.0,1.43941286]
[1749894831569,0.43497357,104960.0,104950.0,1.42453932]
[1749894831770,0.43497357,104960.0,104950.0,1.43942975]
[1749894832874,0.43497357,104960.0,104950.0,1.42453932]
[1749894833265,0.43497357,104960.0,104950.0,1.43942975]
[1749894834167,0.43497357,104960.0,104950.0,1.42453932]
[1749894834472,0.5535717,104960.0,104950.0,1.42453932]
[1749894834675,0.5535717,104960.0,104950.0,1.43942975]
[1749894835265,0.52402643,104960.0,104950.0,1.43942975]
[1749894835763,0.52402643,104960.0,104950.0,1.42453932]
[1749894835971,0.52402643,104960.0,104950.0,1.43942975]
[1749894838462,0.52402643,104960.0,104950.0,1.42453932]
[1749894838676,0.49082643,104960.0,104950.0,1.42453932]
[1749894839177,0.49082643,104960.0,104950.0,1.43942975]
[1749894839767,0.49082643,104960.0,104950.0,1.42453932]
[1749894839973,0.49082643,104960.0,104950.0,1.43942975]
[1749894840871,0.49082643,104960.0,104950.0,1.42453932]
[1749894841077,0.49082643,104960.0,104950.0,1.43944499]
[1749894841378,0.49082643,104960.0,104950.0,0.662165]
[1749894841570,0.43277357,104960.0,104950.0,0.480445]
[1749894841771,0.43277357,104960.0,104950.0,1.42379455]
[1749894842175,0.43277357,104960.0,104950.0,1.3746851]
[1749894842376,0.79357357,104960.0,104950.0,1.35979455]
[1749894842879,0.79357357,104960.0,104950.0,1.37468527]
[1749894843376,0.79357357,104960.0,104950.0,1.35979455]
[1749894843574,0.79357357,104960.0,104950.0,1.37468527]
[1749894843878,0.9121717,104960.0,104950.0,1.35979455]
[1749894844176,0.9121717,104960.0,104950.0,1.37468527]
[1749894844483,0.79357357,104960.0,104950.0,1.35979455]
[1749894844776,0.79357357,104960.0,104950.0,1.37468527]
[1749894845171,0.79771192,104960.0,104950.0,1.35979455]
[1749894845370,0.79771192,104960.0,104950.0,1.37468527]
[1749894845571,0.79771192,104960.0,104950.0,0.26937575]
[1749894845767,0.79771192,104960.0,104950.0,1.21276503]
[1749894845971,0.79771192,104960.0,104950.0,1.22765606]
[1749894846171,0.79357357,104960.0,104950.0,1.21276503]
[1749894846568,0.79357357,104960.0,104950.0,1.22765616]
[1749894846768,0.79357357,104960.0,104950.0,1.21276503]
[1749894847377,0.9121717,104960.0,104950.0,0.45053616]
[1749894847673,0.9121717,104960.0,104950.0,0.43564503]
[1749894847879,0.9121717,104960.0,104950.0,1.2276565]
[1749894848277,0.9121717,104960.0,104950.0,1.22765652]
[1749894848473,0.9121717,104960.0,104950.0,0.43564503]
[1749894848780,0.9121717,104960.0,104950.0,0.06190379]
[1749894848977,0.9121717,104960.0,104950.0,0.4186234]
[1749894849281,0.9121717,104960.0,104950.0,0.2430239]
[1749894849481,0.9121717,104960.0,104950.0,0.3905028]
[1749894849979,0.9121717,104960.0,104950.0,0.39050304]
[1749894850478,0.9121717,104960.0,104950.0,0.20001194]
[1749894850778,0.9121717,104960.0,104950.0,0.200012]
[1749894850980,0.9121717,104960.0,104950.0,0.20001233]
[1749894851175,0.9121717,104960.0,104950.0,0.20001235]
[1749894851479,0.9121717,104960.0,104950.0,0.20005266]
[1749894851677,0.9121717,104960.0,104950.0,0.20005272]
[1749894852072,0.9121717,104960.0,104950.0,0.18516]
[1749894852273,0.9121717,104960.0,104950.0,0.20005272]
[1749894853076,0.9121717,104960.0,104950.0,0.20005279]
[1749894853475,0.9121717,104960.0,104950.0,0.18516]
[1749894853682,1.0074517,104960.0,104950.0,0.01889279]
[1749894853880,1.07001357,104960.0,104950.0,0.01889294]
[1749894854085,1.07001357,104960.0,104950.0,0.01889319]
[1749894854283,1.21845216,104960.0,104950.0,0.01889348]
[1749894854481,1.21845216,104960.0,104950.0,0.03207149]
[1749894854681,1.21845216,104960.0,104950.0,0.0320879]
[1749894854881,1.21845216,104960.0,104950.0,0.01719427]
[1749894855076,1.21845216,104960.0,104950.0,0.03208789]
[1749894855283,1.21845216,104960.0,104950.0,0.01719431]
[1749894855482,1.21845216,104960.0,104950.0,0.03208793]
[1749894855684,1.21845216,104960.0,104950.0,0.01716223]
[1749894855887,1.07001357,104960.0,104950.0,0.03205161]
[1749894856483,1.18857472,104960.0,104950.0,0.03205159]
[1749894856787,1.18857472,104960.0,104950.0,0.03205156]
[1749894857191,1.18857472,104960.0,104950.0,0.03205164]
[1749894857385,1.18857472,104960.0,104950.0,0.03205833]
[1749894857584,1.18857472,104960.0,104950.0,0.03205838]
[1749894857784,1.18857472,104960.0,104950.0,0.004]
[1749894857984,1.18857472,104960.0,104950.0,0.01889355]
[1749894858186,1.18857472,104960.0,104950.0,0.03205968]
[1749894858385,1.07001357,104960.0,104950.0,0.03205968]
[1749894858586,1.18854848,104960.0,104950.0,0.03205969]
[1749894859191,1.18854787,104960.0,104950.0,0.03205969]
[1749894859383,1.18854787,104960.0,104950.0,0.004]
[1749894859579,1.18854787,104960.0,104950.0,0.03205957]
[1749894859781,1.18854787,104960.0,104950.0,0.03210499]
[1749894859990,1.04147835,104960.0,104950.0,0.03210499]
[1749894860292,1.18854787,104960.0,104950.0,0.004]
[1749894860491,1.18854787,104960.0,104950.0,0.03210574]
[1749894860991,1.18854787,104960.0,104950.0,0.03010574]
[1749894861191,1.09626787,104960.0,104950.0,0.03011001]
[1749894861389,1.09626787,104960.0,104950.0,0.02811001]
[1749894861588,1.09826787,104960.0,104950.0,0.01321637]
[1749894861892,1.09826787,104960.0,104950.0,0.02810996]
[1749894862191,0.1904912,104950.0,104940.0,0.4192943]
[1749894862391,0.79496072,104950.0,104940.0,0.4192943]
[1749894862581,0.79496072,104950.0,104940.0,0.43251067]
[1749894862783,0.79496072,104950.0,104940.0,0.43418789]
[1749894863094,2.29496072,104950.0,104940.0,0.39980568]
[1749894863387,2.29496072,104950.0,104940.0,0.38656059]
[1749894863690,2.29596072,104950.0,104940.0,0.39980568]
[1749894863888,2.29596072,104950.0,104940.0,0.39980569]
[1749894864193,2.41449502,104950.0,104940.0,0.39980569]
[1749894864491,2.41549502,104950.0,104940.0,0.39980569]
[1749894864988,2.41549502,104950.0,104940.0,0.39980361]
[1749894865185,2.41549502,104950.0,104940.0,0.404367]
[1749894865390,2.41549502,104950.0,104940.0,0.41926057]
[1749894865593,2.2684255,104950.0,104940.0,0.43250132]
[1749894865890,2.2684255,104950.0,104940.0,0.24199432]
[1749894865891,2.41549502,104950.0,104940.0,0.24199432]
[1749894866091,2.41549502,104950.0,104940.0,0.43250367]
[1749894866285,2.41549502,104950.0,104940.0,0.43250362]
[1749894866592,2.41549502,104950.0,104940.0,0.24199432]
[1749894866786,2.41549502,104950.0,104940.0,0.01324073]
[1749894866787,2.29696072,104950.0,104940.0,0.01324073]
[1749894866992,2.44539931,104950.0,104940.0,0.0281346]
[1749894867186,0.1905093,104940.0,104930.0,0.75413432]
[1749894867387,0.81687449,104940.0,104930.0,0.6219589]
[1749894867589,0.81687449,104940.0,104930.0,0.63526314]
[1749894867989,0.81687449,104940.0,104930.0,0.63526316]
[1749894868191,0.66980497,104940.0,104930.0,0.6070648]
[1749894868386,0.81687449,104940.0,104930.0,0.78333265]
[1749894868591,0.81687449,104940.0,104930.0,0.78333266]
[1749894868795,0.81687449,104940.0,104930.0,0.76843856]
[1749894869093,0.82640683,104940.0,104930.0,0.78333678]
[1749894869295,0.82640683,104940.0,104930.0,0.73670549]
[1749894869492,0.82640683,104940.0,104930.0,0.57632764]
[1749894869693,0.82640683,104940.0,104930.0,0.5614335]
[1749894869993,0.82640683,104940.0,104930.0,0.57632766]
[1749894870194,0.82640683,104940.0,104930.0,0.54200881]
[1749894870398,0.82640683,104940.0,104930.0,0.52711465]
[1749894870596,0.85710683,104940.0,104930.0,0.68908421]
[1749894870795,0.85710683,104940.0,104930.0,0.68908579]
[1749894871095,0.85710683,104940.0,104930.0,0.54202345]
[1749894871486,0.85710683,104940.0,104930.0,0.52869642]
[1749894871795,0.85710683,104940.0,104930.0,0.54202348]
[1749894872296,0.85710683,104940.0,104930.0,0.54202317]
[1749894872495,0.85710683,104940.0,104930.0,0.52712897]
[1749894872694,0.85710683,104940.0,104930.0,0.52869642]
[1749894872895,0.71003731,104940.0,104930.0,0.52712926]
[1749894873193,0.85710683,104940.0,104930.0,0.52712927]
[1749894873393,0.85710683,104940.0,104930.0,0.54202349]
[1749894873594,0.82640683,104940.0,104930.0,0.54202348]
[1749894874093,0.82640683,104940.0,104930.0,0.5138022]
[1749894874297,0.82640683,104940.0,104930.0,0.54201828]
[1749894874685,0.82640683,104940.0,104930.0,0.52869642]
[1749894874888,0.82640683,104940.0,104930.0,0.5138022]
[1749894875088,0.82640683,104940.0,104930.0,0.52712403]
[1749894875385,0.79682666,104940.0,104930.0,0.5700566]
[1749894875589,0.79682666,104940.0,104930.0,0.58495083]
[1749894875788,0.79682666,104940.0,104930.0,0.57162899]
[1749894875988,0.79682666,104940.0,104930.0,0.57005657]
[1749894876184,0.79682666,104940.0,104930.0,0.58495079]
[1749894876387,0.79682666,104940.0,104930.0,0.55673477]
[1749894876599,0.79682666,104940.0,104930.0,0.58495081]
[1749894876902,0.79682666,104940.0,104930.0,0.57162899]
[1749894877197,0.79682666,104940.0,104930.0,0.58495084]
[1749894877692,0.79682666,104940.0,104930.0,0.57162899]
[1749894877898,0.79682666,104940.0,104930.0,0.58495085]
[1749894878098,0.79682666,104940.0,104930.0,0.57162899]
[1749894878292,0.79682666,104940.0,104930.0,0.58495079]
[1749894878492,0.79682666,104940.0,104930.0,0.5849508]
[1749894878998,0.79682666,104940.0,104930.0,0.55673477]
[1749894879201,0.79682666,104940.0,104930.0,0.58497325]
[1749894879386,0.28895714,104940.0,104930.0,0.73204072]
[1749894879593,0.43602666,104940.0,104930.0,0.71708981]
[1749894879794,0.43602666,104940.0,104930.0,0.71707279]
[1749894880091,0.43602666,104940.0,104930.0,0.71869785]
[1749894880396,0.43602666,104940.0,104930.0,1.50217784]
[1749894880601,0.43602666,104940.0,104930.0,1.50054554]
[1749894880796,0.43602666,104940.0,104930.0,1.5154391]
[1749894881000,0.43602666,104940.0,104930.0,1.51543906]
[1749894881199,0.43602666,104940.0,104930.0,1.48728429]
[1749894881499,0.43602666,104940.0,104930.0,1.50054554]
[1749894881700,0.43602666,104940.0,104930.0,1.51543909]
[1749894881898,0.43602666,104940.0,104930.0,1.50217784]
[1749894882100,0.43602666,104940.0,104930.0,1.48728429]
[1749894882299,0.43602666,104940.0,104930.0,1.5154391]
[1749894882799,0.43602666,104940.0,104930.0,1.50054555]
[1749894883000,0.43602666,104940.0,104930.0,1.48728429]
[1749894883195,0.43602666,104940.0,104930.0,1.50193784]